bitfinex/quotes_SOLUSD_20241113
["timestamp","ask_amount","ask_price","bid_price","bid_amount"]
[1731509853209,1.15557112,216.36,215.99,215.90253098]
[1731509853510,27.61,216.37,215.99,215.90253098]
[1731509853907,1.15554998,216.36,215.99,211.30253098]
[1731509854115,1.25554998,216.36,215.99,211.30253098]
[1731509854323,1.15554998,216.36,215.99,211.30253098]
[1731509854512,0.1,216.32,215.99,211.30253098]
[1731509854703,1.15596952,216.32,215.99,206.70153098]
[1731509854907,1.25581519,216.34,215.99,206.70153098]
[1731509855123,1.15581519,216.34,215.99,206.70153098]
[1731509855322,1.15581519,216.34,215.99,183.68153098]
[1731509855513,1.25571007,216.36,215.99,183.68153098]
[1731509855714,1.15571007,216.36,215.99,183.68153098]
[1731509855914,0.1,216.35,215.99,183.68153098]
[1731509856135,1.15571007,216.36,215.99,179.08153098]
[1731509856820,27.61,216.37,215.99,179.08153098]
[1731509857011,1.15556832,216.36,215.99,179.08153098]
[1731509857209,1.15563437,216.36,215.99,179.08153098]
[1731509857422,0.1,216.35,215.99,179.08153098]
[1731509857630,1.1558251,216.35,215.99,174.47353098]
[1731509857831,1.2558251,216.35,215.99,174.47353098]
[1731509858133,1.15585481,216.36,215.99,174.47353098]
[1731509858320,0.1,216.33,215.99,174.47353098]
[1731509858630,0.1,216.32,215.99,198.25811966]
[1731509858834,0.1,216.33,215.99,198.25811966]
[1731509859013,0.2,216.3,215.99,198.25811966]
[1731509860141,1.25614985,216.3,215.99,198.25811966]
[1731509860315,1.15583081,216.34,215.99,198.25811966]
[1731509860712,0.1,216.33,215.99,198.25811966]
[1731509861014,0.1,216.27,215.99,198.25811966]
[1731509861219,0.2,216.27,215.99,198.25811966]
[1731509861522,0.1,216.36,215.99,198.40785237]
[1731509861714,0.1,216.34,215.99,198.40785237]
[1731509861933,1.1558241,216.33,215.99,198.40785237]
[1731509862114,1.15579937,216.37,215.99,198.40785237]
[1731509862314,13.25377164,216.38,215.99,197.50954737]
[1731509862518,0.1,216.37,215.99,197.50954737]
[1731509862733,13.25400933,216.38,215.99,197.50954737]
[1731509862934,12.5255,216.32,215.99,30.80854737]
[1731509863130,12.5255,216.19,215.99,30.80854737]
[1731509863317,33.2804,216.17,215.99,192.90854737]
[1731509863519,1.1567108,216.16,215.99,192.90854737]
[1731509863728,0.1,216.12,215.99,168.97422598]
[1731509863935,0.2,216.1,215.99,168.97422598]
[1731509864124,0.1,216.07,215.99,168.97422598]
[1731509864336,0.1,216.08,215.99,168.97422598]
[1731509864520,1.15719558,216.12,215.99,168.97422598]
[1731509865335,1.25719558,216.12,215.99,168.97422598]
[1731509865541,1.15694825,216.16,215.99,168.97422598]
[1731509865740,12.5255,216.19,215.99,168.97422598]
[1731509866237,1.25653642,216.24,215.99,168.97422598]
[1731509866968,30.2846,216.25,215.99,168.97422598]
[1731509867147,0.1,216.29,215.99,168.97422598]
[1731509867318,0.1,216.17,215.99,6.87422598]
[1731509867516,0.1,216.1,215.99,164.37322598]
[1731509868041,0.1,216.05,215.99,164.37322598]
[1731509868248,0.1,216.03,215.99,164.37322598]
[1731509869321,0.1,216.07,215.99,164.37322598]
[1731509869624,0.1,216.06,215.99,164.37322598]
[1731509869829,0.1,216.05,215.99,164.37322598]
[1731509870249,0.1,216.04,215.99,164.37322598]
[1731509870538,0.1,216.02,215.99,164.37322598]
[1731509870940,0.2,216.06,215.99,164.37322598]
[1731509871146,1.15744276,216.15,215.99,164.37322598]
[1731509871147,0.1,216.07,215.99,164.37322598]
[1731509871925,43.6153,216.16,215.99,164.37322598]
[1731509871926,0.1,216.14,215.99,164.37322598]
[1731509872129,0.1,216.12,215.99,164.37322598]
[1731509872336,0.1,216.1,215.99,159.76522598]
[1731509872545,0.1,216.14,215.99,159.76522598]
[1731509872736,0.1,216.12,215.99,159.76522598]
[1731509873136,0.1,216.12,215.99,155.16522598]
[1731509873328,1.15711697,216.15,215.99,155.16522598]
[1731509873531,0.1,216.13,215.99,155.16522598]
[1731509873732,0.2,216.13,215.99,155.16522598]
[1731509873932,1.25711697,216.15,215.99,155.16522598]
[1731509874232,0.1,216.23,215.99,150.56522598]
[1731509874435,1.25635328,216.23,215.99,150.56522598]
[1731509874750,0.1,216.18,215.99,150.56522598]
[1731509874927,0.1,216.16,215.99,150.56522598]
[1731509875128,1.25663032,216.2,215.99,145.96522598]
[1731509875437,0.2,216.17,215.99,145.96522598]
[1731509875638,0.1,216.15,215.99,169.28688014]
[1731509875941,1.25677493,216.15,215.99,145.96522598]
[1731509876139,0.1,216.12,215.99,141.36522598]
[1731509876352,0.1,216.14,215.99,141.36522598]
[1731509876643,0.1,216.08,215.99,141.36522598]
[1731509876836,1.15683064,216.17,215.99,141.36522598]
[1731509876837,0.1,216.12,215.99,141.36522598]
[1731509877037,0.2,216.12,215.99,141.36522598]
[1731509877254,0.1,216.16,215.99,164.68688014]
[1731509877448,0.1,216.14,215.99,164.68688014]
[1731509877744,0.1,216.16,215.99,164.68688014]
[1731509877949,0.1,216.14,215.99,164.68688014]
[1731509878448,0.2,216.16,215.99,160.08688014]
[1731509878653,0.1,216.11,215.99,136.76522598]
[1731509879032,0.1,216.16,215.99,136.76522598]
[1731509879033,0.1,216.08,215.99,136.76522598]
[1731509879347,0.2,216.11,215.99,132.16522598]
[1731509879844,0.1,216.11,215.99,132.16522598]
[1731509880227,0.1,216.15,215.99,127.56522598]
[1731509880546,0.2,216.15,215.99,127.56522598]
[1731509880734,0.1,216.11,215.99,127.56522598]
[1731509880941,0.1,216.13,215.99,127.56522598]
[1731509881150,0.1,216.14,215.99,127.56522598]
[1731509881341,0.2,216.16,215.99,127.92474254]
[1731509881538,0.2,216.16,215.99,122.96522598]
[1731509881731,0.1,216.12,215.99,122.96522598]
[1731509881933,0.1,216.08,215.99,122.96522598]
[1731509882223,0.2,216.06,215.99,122.96522598]
[1731509882453,0.2,216.01,215.99,118.36522598]
[1731509883355,0.2,216.05,215.99,113.76522598]
[1731509883556,0.1,216.01,215.99,113.76522598]
[1731509883849,0.1,216.03,215.99,113.76522598]
[1731509884047,1.25738574,216.05,215.99,113.76522598]
[1731509884236,0.1,216.05,215.99,113.76522598]
[1731509884433,0.1,216.03,215.99,109.16522598]
[1731509884954,0.1,216.0,215.99,109.16522598]
[1731509885332,0.1,216.0,215.99,113.76522598]
[1731509885529,0.1,215.96,215.95,2.52126258]
[1731509885733,1.25804378,215.98,215.95,162.1]
[1731509885952,43.9243,216.0,215.96,0.12549]
[1731509886258,43.9243,216.0,215.96,162.22549]
[1731509886555,12.1034,216.08,215.98,0.12549]
[1731509886761,12.1034,216.08,215.99,4.6]
[1731509886933,12.1034,216.16,215.99,166.7]
[1731509887131,0.1,216.15,215.99,166.7]
[1731509887348,0.1,216.15,215.99,162.092]
[1731509887863,13.26025071,216.16,215.99,162.092]
[1731509888232,31.9209,216.17,215.99,162.092]
[1731509888439,12.5095,216.22,215.99,162.092]
[1731509888851,1.15636071,216.21,215.99,162.092]
[1731509889056,0.1,216.18,215.99,162.092]
[1731509889359,0.1,216.17,215.99,162.092]
[1731509889537,0.1,216.14,215.99,162.092]
[1731509889737,0.1,216.1,215.99,162.092]
[1731509890152,0.1,216.19,215.99,162.092]
[1731509890643,1.15669642,216.19,215.99,162.092]
[1731509890852,12.5095,216.22,215.99,162.092]
[1731509891049,32.7379,216.31,215.99,162.092]
[1731509891244,13.0262,216.37,215.99,185.29774261]
[1731509891440,0.1,216.33,215.99,185.29774261]
[1731509891950,0.1,216.36,215.99,185.29774261]
[1731509892151,0.1,216.34,215.99,185.29774261]
[1731509892352,0.1,216.34,215.99,180.69774261]
[1731509892554,0.1,216.3,215.99,180.69774261]
[1731509892768,0.1,216.32,215.99,180.69774261]
[1731509893060,0.1,216.28,215.99,180.69774261]
[1731509893355,0.1,216.23,215.99,176.09774261]
[1731509893558,0.1,216.18,215.99,176.09774261]
[1731509893757,0.1,216.23,215.99,176.09774261]
[1731509893758,0.1,216.2,215.99,176.09774261]
[1731509894058,0.1,216.24,215.99,176.09774261]
[1731509894357,1.15644251,216.36,215.99,176.09774261]
[1731509894358,0.1,216.26,215.99,171.49774261]
[1731509894563,0.2,216.24,215.99,171.49774261]
[1731509894857,0.1,216.23,215.99,171.49774261]
[1731509895160,0.1,216.24,215.99,171.49774261]
[1731509895357,0.2,216.26,215.99,166.89774261]
[1731509895664,0.1,216.23,215.99,166.89774261]
[1731509895850,0.1,216.25,215.99,166.89774261]
[1731509896164,0.2,216.21,215.99,166.89774261]
[1731509896339,0.1,216.2,215.99,166.89774261]
[1731509896545,1.15628365,216.34,215.99,166.89774261]
[1731509896546,0.1,216.24,215.99,162.29774261]
[1731509896842,0.1,216.26,215.99,162.29774261]
[1731509897262,0.1,216.28,215.99,162.29774261]
[1731509897477,0.5393272,216.39,215.99,157.69774261]
[1731509897767,0.1,216.33,215.99,157.69774261]
[1731509898244,0.1,216.3,215.99,157.69774261]
[1731509898858,0.2,216.3,215.99,157.69774261]
[1731509899164,0.1,216.29,215.99,157.69774261]
[1731509899350,0.1,216.28,215.99,157.69774261]
[1731509899555,0.1,216.29,215.99,153.09774261]
[1731509899865,0.1,216.27,215.99,153.09774261]
[1731509900074,0.1,216.25,215.99,153.09774261]
[1731509900567,0.1,216.27,215.99,148.49774261]
[1731509900745,0.1,216.3,215.99,148.49774261]
[1731509900947,0.1,216.32,215.99,148.49774261]
[1731509901169,0.1,216.3,215.99,148.49774261]
[1731509901551,0.1,216.3,215.99,146.19834261]
[1731509901745,0.1,216.25,215.99,146.19834261]
[1731509902270,0.1,216.35,215.99,146.19834261]
[1731509902457,0.1,216.29,215.99,146.19834261]
[1731509902652,0.1,216.3,215.99,146.19834261]
[1731509902965,0.4393272,216.39,215.99,141.59034261]
[1731509903766,0.4393272,216.39,215.99,136.99034261]
[1731509904659,0.4393272,216.39,215.99,132.39034261]
[1731509905672,0.4393272,216.39,215.99,127.79034261]
[1731509906780,0.4393272,216.39,215.99,123.19034261]
[1731509907752,0.4393272,216.39,215.99,118.59034261]
[1731509908075,0.1,216.34,215.99,118.59034261]
[1731509908667,0.1,216.33,215.99,118.59034261]
[1731509908851,0.1,216.31,215.99,113.99034261]
[1731509909053,0.2,216.34,215.99,113.99034261]
[1731509909368,0.2,216.36,215.99,113.99034261]
[1731509909566,0.1,216.34,215.99,113.99034261]
[1731509909746,0.2,216.36,215.99,109.39034261]
[1731509909945,23.876884,216.36,215.99,109.39034261]
[1731509910166,0.1,216.33,215.99,109.39034261]
[1731509910365,23.876884,216.36,215.99,109.39034261]
[1731509910556,0.1,216.33,215.99,109.39034261]
[1731509910754,0.1,216.33,216.0,24.72549]
[1731509910953,0.4393272,216.39,216.04,24.72549]
[1731509911152,0.1,216.37,216.17,24.72549]
[1731509911371,0.5393272,216.39,216.32,4.6]
[1731509911549,0.5393272,216.39,216.34,4.6]
[1731509911750,0.4393272,216.39,216.35,0.12549]
[1731509912075,0.1,216.56,216.39,0.12549]
[1731509912384,1.25497114,216.59,216.41,0.12549]
[1731509912561,0.1,216.54,216.41,0.12549]
[1731509913476,0.1,216.52,216.41,0.12549]
[1731509913657,0.1,216.52,216.4,28.19486391]
[1731509913858,0.1,216.53,216.4,28.19486391]
[1731509914068,0.1,216.53,216.42,0.12549]
[1731509914452,0.1,216.54,216.42,0.12549]
[1731509914659,0.1,216.52,216.42,0.12549]
[1731509914854,0.1,216.54,216.41,43.36439517]
[1731509915053,51.486884,216.53,216.41,20.0]
[1731509915359,1.15509233,216.52,216.42,4.72549]
[1731509915675,1.15490468,216.51,216.44,24.72549]
[1731509915867,1.15493337,216.54,216.44,20.12549]
[1731509916260,28.76493337,216.54,216.43,0.12549]
[1731509916461,28.76493337,216.54,216.43,4.72549]
[1731509916773,28.86493337,216.54,216.43,4.72549]
[1731509916955,0.1,216.5,216.39,23.04264654]
[1731509917157,23.776884,216.49,216.3,23.34986975]
[1731509917368,1.15517579,216.49,216.39,0.12549]
[1731509917564,23.776884,216.53,216.41,28.32410254]
[1731509917760,23.776884,216.51,216.31,23.83875987]
[1731509917963,19.50129233,216.55,216.31,23.83875987]
[1731509918163,0.1,216.53,216.24,23.41979946]
[1731509918484,0.1,216.49,216.28,23.94161146]
[1731509918686,0.1,216.49,216.27,4.6]
[1731509918687,0.1,216.46,216.33,4.6]
[1731509918870,0.1,216.42,216.24,23.66887104]
[1731509919064,0.1,216.39,216.21,27.48596826]
[1731509919381,0.46373406,216.38,216.21,27.48596826]
[1731509919589,0.56373406,216.38,216.24,4.6]
[1731509919885,0.1,216.35,216.24,28.26887104]
[1731509920186,33.74583406,216.34,216.25,0.12549]
[1731509920374,33.74583406,216.34,216.26,4.6]
[1731509920872,23.876884,216.33,216.23,23.76095581]
[1731509921070,0.46373406,216.32,216.22,23.18005304]
[1731509921384,0.46373406,216.32,216.17,0.12549]
[1731509921563,0.46373406,216.32,216.08,23.22160677]
[1731509921564,27.61,216.25,216.08,23.22160677]
[1731509921764,23.776884,216.23,216.07,3.84923122]
[1731509921985,0.46373406,216.22,216.09,27.60023881]
[1731509922177,0.1,216.2,215.99,23.89508162]
[1731509922389,0.46373406,216.19,215.99,27.82737031]
[1731509922685,12.3925,216.18,215.99,27.82737031]
[1731509922868,0.46373406,216.17,215.99,27.82737031]
[1731509923071,30.8732,216.16,216.07,4.6]
[1731509923366,0.46373406,216.15,216.08,23.37250565]
[1731509923558,0.46373406,216.15,216.09,4.6]
[1731509923762,0.46373406,216.15,215.91,23.95438869]
[1731509923962,0.56373406,216.15,215.94,4.6]
[1731509924285,0.56373406,216.15,216.01,27.92314668]
[1731509924469,0.46373406,216.15,216.01,27.92314668]
[1731509924783,0.56373406,216.15,216.01,27.92314668]
[1731509925878,0.46373406,216.15,216.01,27.92314668]
[1731509926080,0.46373406,216.15,216.06,23.68778802]
[1731509926383,0.46373406,216.15,216.08,0.12549]
[1731509926585,0.46373406,216.15,215.97,0.79948779]
[1731509926586,0.46373406,216.15,215.97,24.6]
[1731509927168,0.46373406,216.15,215.98,0.79858688]
[1731509927381,0.46373406,216.15,215.99,4.72549]
[1731509927768,0.46373406,216.15,215.99,28.12018352]
[1731509927973,0.46373406,216.15,215.99,4.6]
[1731509928169,0.46373406,216.15,215.99,166.7]
[1731509928387,0.46373406,216.15,215.99,194.00260399]
[1731509928684,30.9921,216.24,215.99,194.00260399]
[1731509928867,0.46373406,216.23,215.99,43.63120399]
[1731509929067,0.46373406,216.23,215.99,205.73120399]
[1731509931974,0.46373406,216.23,215.99,43.63120399]
[1731509932292,0.46373406,216.23,215.99,39.02320399]
[1731509932586,0.46373406,216.23,215.99,11.7286]
[1731509933071,0.46373406,216.23,215.99,34.91215364]
[1731509933275,0.46373406,216.23,215.99,197.01215364]
[1731509933475,0.46373406,216.23,215.99,192.41215364]
[1731509934081,30.9921,216.24,215.99,192.41215364]
[1731509934278,13.0064,216.26,215.99,169.2286]
[1731509934483,13.0064,216.26,215.99,164.6286]
[1731509934887,13.0064,216.26,215.99,168.56821407]
[1731509935396,0.1,216.26,215.99,168.56821407]
[1731509935582,0.1,216.2,215.99,163.96821407]
[1731509936290,0.1,216.18,215.99,163.96821407]
[1731509936489,0.1,216.18,215.99,159.36821407]
[1731509936665,0.1,216.16,215.99,155.4286]
[1731509937065,0.1,216.18,215.99,155.4286]
[1731509937297,0.1,216.2,215.99,155.4286]
[1731509937498,0.1,216.18,215.99,155.4286]
[1731509937674,0.1,216.18,215.99,150.8286]
[1731509938871,0.1,216.22,215.99,146.2286]
[1731509939086,0.1,216.19,215.99,146.2286]
[1731509939270,0.1,216.17,215.99,146.2286]
[1731509939479,0.1,216.19,215.99,146.2286]
[1731509939675,0.1,216.19,215.99,141.6276]
[1731509939889,0.1,216.21,215.99,141.6276]
[1731509940090,0.1,216.17,215.99,141.6276]
[1731509940473,59.9959,216.32,215.99,141.6276]
[1731509940474,0.1,216.21,215.99,141.6276]
[1731509940669,0.1,216.19,215.99,141.6276]
[1731509940883,0.1,216.19,215.99,137.0276]
[1731509941400,0.1,216.23,215.99,137.0276]
[1731509941893,0.1,216.2,215.99,132.4276]
[1731509942600,0.1,216.17,215.99,132.4276]
[1731509942979,0.1,216.19,215.99,127.8266]
[1731509943183,0.1,216.25,215.99,127.8266]
[1731509943407,0.1,216.22,215.99,126.3823834]
[1731509944102,0.1,216.2,215.99,124.6698166]
[1731509944303,0.1,216.12,215.98,0.79858688]
[1731509944478,0.1,216.07,215.98,162.89858688]
[1731509944676,1.15685919,216.15,215.98,162.89858688]
[1731509944677,0.1,216.03,215.98,162.89858688]
[1731509944898,0.1,216.01,215.98,162.89858688]
[1731509945088,0.1,216.01,215.99,4.602]
[1731509945285,0.1,216.06,215.99,4.602]
[1731509945479,0.1,216.09,215.99,166.702]
[1731509945685,0.1,216.12,215.99,166.702]
[1731509946297,0.1,216.09,215.99,166.702]
[1731509946883,0.1,216.2,215.99,166.702]
[1731509947095,0.1,216.22,215.99,166.702]
[1731509947284,0.1,216.15,215.99,181.32153354]
[1731509947582,1.15619961,216.22,215.99,181.32153354]
[1731509947583,0.1,216.1,215.99,152.893]
[1731509947801,0.1,216.08,215.99,152.893]
[1731509948504,0.1,216.08,215.99,148.291]
[1731509949397,0.1,216.08,215.99,143.689]
[1731509949597,0.1,216.06,215.99,143.689]
[1731509949791,0.1,216.01,215.99,143.689]
[1731509950601,0.1,216.01,215.99,139.087]
[1731509951605,0.1,216.01,215.99,134.485]
[1731509952207,1.15720359,216.08,215.99,162.1]
[1731509952410,0.1,216.11,215.98,0.79858688]
[1731509952704,0.1,216.11,215.99,0.12549]
[1731509953006,0.1,216.11,215.98,0.79858688]
[1731509953203,1.15744153,216.32,215.98,0.79858688]
[1731509953204,0.1,216.07,215.98,0.79858688]
[1731509953509,0.1,215.98,215.75,23.77061576]
[1731509953801,0.2,215.98,215.92,1.847665]
[1731509954004,0.1,215.96,215.73,23.55884833]
[1731509954196,0.1,215.92,215.79,0.79564509]
[1731509954394,0.1,215.92,215.64,36.18020371]
[1731509954580,0.1,215.92,215.65,5.0413272]
[1731509954782,0.1,215.89,215.77,0.79618466]
[1731509954998,0.1,215.89,215.67,4.602]
[1731509955206,42.7257,215.88,215.76,0.79620415]
[1731509955508,1.1585592,215.87,215.68,0.12549]
[1731509955703,1.1585592,215.87,215.75,0.79638839]
[1731509956207,42.7257,215.88,215.76,0.12549]
[1731509956710,1.15819408,215.87,215.76,0.12549]
[1731509957027,1.15817996,215.86,215.76,0.12549]
[1731509957305,1.15817996,215.86,215.75,0.79600215]
[1731509960521,1.16012435,215.56,215.5,0.26430013]
[1731509961111,1.16012435,215.56,215.44,0.4393272]
[1731509961607,21.05222435,215.6,215.44,162.5393272]
[1731509961813,1.16023922,215.59,215.44,162.5393272]
[1731509962000,1.16023922,215.59,215.45,0.12549]
[1731509962910,18.93002435,215.6,215.46,0.1]
[1731509963214,12.0352,215.6,215.46,0.1]
[1731509963684,12.7479,215.73,215.49,0.1]
[1731509963890,12.7479,215.73,215.64,10.46831]
[1731509964190,12.7479,215.83,215.65,0.12549]
[1731509964406,1.1587435,215.82,215.65,0.12549]
[1731509964610,1.1587435,215.82,215.66,0.1]
[1731509964913,1.0333435,215.82,215.65,162.22549]
[1731509965205,0.1,215.76,215.64,7.60501]
[1731509965400,1.13389811,215.76,215.64,7.60501]
[1731509965707,1.03389811,215.76,215.64,7.60501]
[1731509965917,1.03379907,215.82,215.65,0.12549]
[1731509966202,0.1,215.79,215.65,0.12549]
[1731509966410,1.1337715,215.79,215.64,7.60501]
[1731509966606,1.1337715,215.79,215.65,0.12549]
[1731509966807,1.1337715,215.79,215.64,7.60501]
[1731509966808,1.0337715,215.79,215.64,7.60501]
[1731509966988,1.1337715,215.79,215.64,7.60501]
[1731509967406,1.1337715,215.79,215.65,0.12549]
[1731509967903,1.0337715,215.79,215.65,0.12549]
[1731509968293,0.1,215.78,215.67,0.12549]
[1731509968610,1.03381534,215.77,215.65,23.03346994]
[1731509968815,0.1,215.76,215.65,23.03346994]
[1731509969110,1.03391248,215.75,215.65,23.03346994]
[1731509969313,1.03391248,215.75,215.64,7.60501]
[1731509969618,1.03391248,215.75,215.65,0.12549]
[1731509969814,1.03391248,215.75,215.66,23.92766517]
[1731509969989,1.03380725,215.74,215.66,23.92766517]
[1731509970193,1.03385027,215.73,215.65,23.03346994]
[1731509970408,1.03378735,215.8,215.67,23.87500062]
[1731509970988,1.03378735,215.8,215.69,23.51979079]
[1731509971200,0.90838735,215.8,215.69,23.51979079]
[1731509971388,12.7479,215.83,215.71,23.14636005]
[1731509971701,1.15844536,215.82,215.71,185.24636005]
[1731509972105,1.15851008,215.9,215.75,23.4532583]
[1731509972302,1.15815539,215.93,215.75,23.4532583]
[1731509972498,161.6,216.28,215.75,23.4532583]
[1731509972499,0.1,216.14,215.85,28.32015585]
[1731509972707,1.15744219,216.14,215.95,4.602]
[1731509973014,1.15744219,216.14,215.99,0.12549]
[1731509973212,1.15694248,216.13,215.92,0.1]
[1731509973899,1.15694248,216.13,215.9,0.1]
[1731509974085,1.15694248,216.13,215.83,0.12549]
[1731509974086,0.1,216.12,215.85,0.1]
[1731509974293,0.1,216.1,215.82,0.1]
[1731509974505,1.15769017,216.09,215.8,20.1]
[1731509974793,0.1,216.08,215.81,4.602]
[1731509974997,1.15773467,216.07,215.81,4.602]
[1731509975205,0.1,216.11,215.82,0.22549]
[1731509975407,1.1575013,216.11,215.86,0.1]
[1731509975613,1.1575013,216.11,215.82,0.12549]
[1731509975614,0.1,216.06,215.7,23.17061828]
[1731509975812,27.61,216.09,215.8,0.1]
[1731509975813,1.15803576,216.05,215.8,0.1]
[1731509976412,1.15751366,216.08,215.84,0.1]
[1731509976594,1.15751366,216.08,215.82,4.702]
[1731509976922,45.4291,216.1,215.92,0.1]
[1731509977213,1.15716358,216.09,215.85,0.1]
[1731509977391,28.76716358,216.09,215.77,0.1]
[1731509977592,28.76716358,216.09,215.81,0.1]
[1731509977792,0.1,216.08,215.81,0.1]
[1731509977991,1.1578264,216.07,215.81,0.1]
[1731509978414,1.1578264,216.07,215.84,0.1]
[1731509978711,1.1578264,216.07,215.82,0.1]
[1731509978912,1.1576908,216.06,215.82,0.1]
[1731509979114,1.1576908,216.06,215.86,0.1]
[1731509979287,1.1576908,216.06,215.89,0.1]
[1731509979490,1.1576908,216.06,215.86,0.1]
[1731509979692,1.1576908,216.06,215.83,0.1]
[1731509979888,1.15756908,216.05,215.89,0.1]
[1731509980091,1.1573399,216.08,215.91,0.12549]
[1731509980491,1.1573399,216.08,215.81,4.602]
[1731509981196,0.4393272,216.18,215.85,4.602]
[1731509981418,1.15682048,216.17,215.93,0.1]
[1731509981596,0.4393272,216.18,215.97,0.1]
[1731509981922,0.4393272,216.18,215.98,24.602]
[1731509982118,0.4393272,216.18,215.98,186.702]
[1731509982713,0.4393272,216.18,215.99,0.12549]
[1731509982893,0.4393272,216.18,215.99,157.62349]
[1731509983092,0.4393272,216.18,215.99,153.02149]
[1731509983720,1.15691749,216.17,215.87,0.1]
[1731509983901,1.15691749,216.17,215.85,0.1]
[1731509984102,1.15691749,216.17,215.85,4.702]
[1731509984627,1.1569947,216.16,215.89,0.1]
[1731509984910,0.4393272,216.18,215.91,4.702]
[1731509985117,0.4393272,216.18,215.93,0.1]
[1731509985413,0.4393272,216.18,215.99,0.1]
[1731509985617,0.4393272,216.18,215.99,165.7194]
[1731509986500,0.4393272,216.18,215.99,157.596]
[1731509986715,0.1,216.14,215.92,8.1234]
[1731509986897,0.1,216.15,215.92,170.2234]
[1731509987100,0.1,216.17,215.92,170.2234]
[1731509987396,0.1,216.15,215.92,170.2234]
[1731509987597,0.1,216.13,215.93,4.602]
[1731509988197,0.1,216.15,215.93,4.602]
[1731509988402,0.4393272,216.18,215.95,4.72749]
[1731509988823,0.1,216.17,215.95,186.82749]
[1731509989004,0.4393272,216.18,215.95,186.82749]
[1731509989321,0.4393272,216.18,215.96,0.92521285]
[1731509989621,0.4393272,216.18,215.98,24.602]
[1731509989622,0.1,216.15,215.98,24.602]
[1731509989921,0.1,216.17,215.99,0.12549]
[1731509990431,0.1,216.17,215.99,152.896]
[1731509990600,0.1,216.14,215.99,152.896]
[1731509990799,0.1,216.12,215.99,152.896]
[1731509991001,0.5393272,216.18,215.99,152.896]
[1731509991201,0.4393272,216.18,215.99,152.896]
[1731509991623,0.4393272,216.18,215.99,148.294]
[1731509992612,0.4393272,216.18,215.99,145.9937]
[1731509993120,0.4393272,216.18,215.99,144.4937]
[1731509994415,0.4393272,216.18,215.99,144.5937]
[1731509994712,0.4393272,216.18,215.99,139.9917]
[1731509995311,0.4393272,216.18,215.99,139.8917]
[1731509995621,0.4393272,216.18,215.99,158.52070895]
[1731509996701,0.4393272,216.18,215.99,153.91870895]
[1731509997605,0.4393272,216.18,215.99,130.6877]
[1731509997809,0.4393272,216.18,215.99,121.4797]
[1731509998330,0.5393272,216.18,215.99,121.4797]
[1731509998508,0.4393272,216.18,215.99,121.4797]
[1731509998708,0.4393272,216.18,215.99,116.8777]
[1731509998925,0.5393272,216.18,215.99,116.8777]
[1731509999522,0.1,216.16,215.99,116.8777]
[1731509999818,0.1,216.17,215.99,112.2757]
[1731510000018,0.4393272,216.18,215.99,112.2757]
[1731510000910,0.2,216.15,215.99,107.6737]
[1731510001115,0.1,216.11,215.99,107.6737]
[1731510001314,0.6393272,216.18,215.99,107.6737]
[1731510001615,0.4393272,216.18,215.99,107.6737]
[1731510001810,0.4393272,216.18,215.99,103.0717]
[1731510002530,0.1,216.14,215.99,103.0717]
[1731510002713,0.1,216.17,215.99,103.0717]
[1731510002908,0.1,216.1,215.99,98.4697]
[1731510003105,0.1,216.06,215.99,98.4697]
[1731510003330,0.1,216.02,215.99,98.4697]
[1731510003633,0.1,216.0,215.99,98.4697]
[1731510003809,0.1,216.0,215.99,103.0717]
[1731510004306,0.1,216.02,215.99,103.0717]
[1731510004508,0.1,216.03,215.99,103.0717]
[1731510004724,0.1,216.01,215.99,103.0717]
[1731510004933,0.1,216.0,215.99,104.918327]
[1731510005143,0.1,216.0,215.99,101.3155]